bitfinex-derivatives/quotes_SOLF0:USTF0_20240906
["timestamp","ask_amount","ask_price","bid_price","bid_amount"]
[1725610275817,3.8877,128.65,128.58,29.92]
[1725610276021,0.28606671,128.64,128.6,3.8889]
[1725610276522,4.11232994,128.64,128.61,0.05431304]
[1725610276826,0.28606671,128.63,128.61,0.05431304]
[1725610278219,7.70072895,128.64,128.61,0.05431304]
[1725610278417,0.28604606,128.63,128.61,0.05431304]
[1725610279917,3.8883,128.62,128.61,0.05431304]
[1725610280117,4.17434606,128.62,128.61,0.05431304]
[1725610281129,3.8891,128.6,128.55,4.1091]
[1725610281430,0.2860924,128.59,128.55,4.1091]
[1725610281721,3.8895,128.59,128.55,4.1091]
[1725610282130,0.05431304,128.58,128.56,0.05327618]
[1725610283030,3.95876824,128.57,128.56,0.05327618]
[1725610283234,0.28614059,128.57,128.56,0.05327618]
[1725610283418,3.91323385,128.57,128.56,0.05327618]
[1725610283619,0.28614059,128.57,128.49,29.92]
[1725610283833,0.28614059,128.56,128.49,29.92]
[1725610284021,0.28614059,128.56,128.48,34.0774]
[1725610284226,3.8909,128.54,128.49,3.8921]
[1725610284445,7.81931198,128.54,128.48,34.0774]
[1725610284734,0.05790345,128.52,128.5,0.05140852]
[1725610285426,0.05790345,128.52,128.5,3.94330852]
[1725610286326,0.05790345,128.52,128.5,0.05140852]
[1725610286817,0.05790345,128.52,128.51,3.8917]
[1725610287218,29.92,128.59,128.5,0.05140852]
[1725610287523,3.89,128.57,128.53,3.8909]
[1725610287727,3.98936581,128.56,128.53,3.8909]
[1725610288125,4.03905158,128.56,128.53,3.94637753]
[1725610289426,4.03905158,128.56,128.53,0.05547753]
[1725610290827,7.92935158,128.56,128.53,0.05547753]
[1725610292331,3.93998577,128.56,128.53,0.05547753]
[1725610292828,7.78064571,128.56,128.53,0.05547753]
[1725610296327,3.8906,128.55,128.53,0.05547753]
[1725610299325,3.89034571,128.56,128.53,0.05547753]
[1725610300332,3.8906,128.55,128.53,0.05547753]
[1725610301243,3.93998577,128.56,128.53,0.05547753]
[1725610301744,0.04968577,128.56,128.55,29.92]
[1725610302037,0.28608748,128.61,128.55,29.92]
[1725610302239,3.98149202,128.61,128.54,2.8688]
[1725610302447,235.7755,128.65,128.54,1.4455]
[1725610302448,29.92,128.6,128.54,1.4455]
[1725610302634,0.28610196,128.59,128.53,1.3254]
[1725610303147,0.28610196,128.59,128.55,0.05764307]
[1725610303841,3.8902,128.56,128.55,0.05764307]
[1725610307645,3.89,128.57,128.55,0.05764307]
[1725610308152,3.8897,128.58,128.55,0.05764307]
[1725610308343,3.92076531,128.61,128.55,0.05764307]
[1725610308536,0.28612794,128.6,128.55,29.97764307]
[1725610308732,4.17552794,128.59,128.55,29.97764307]
[1725610308941,3.8894,128.59,128.55,29.97764307]
[1725610310439,3.8894,128.59,128.55,33.86804307]
[1725610311049,7.80091201,128.6,128.56,3.89]
[1725610311339,3.93736762,128.61,128.56,3.89]
[1725610311536,0.28608639,128.6,128.57,0.04994897]
[1725610311743,3.8888,128.61,128.57,0.04994897]
[1725610311938,0.28608639,128.6,128.57,0.04994897]
[1725610312138,31.3048,128.64,128.57,0.04994897]
[1725610312456,3.8891,128.6,128.57,0.04994897]
[1725610314742,3.8895,128.59,128.57,0.04994897]
[1725610318647,3.8896,128.58,128.57,0.04994897]
[1725610321046,31.3048,128.64,128.57,0.04994897]
[1725610321248,0.28604464,128.63,128.58,3.8895]
[1725610321450,7.775,128.65,128.59,0.05609912]
[1725610321451,0.28604464,128.62,128.59,0.05609912]
[1725610321649,1.3207,128.68,128.61,29.92]
[1725610321946,1.3207,128.68,128.63,0.0550067]
[1725610321947,0.28597667,128.67,128.63,0.0550067]
[1725610322344,3.8876,128.65,128.63,0.0550067]
[1725610322847,111.21323267,128.71,128.63,31.3314067]
[1725610323052,0.28592853,128.7,128.66,0.0555289]
[1725610323345,0.28592853,128.69,128.66,0.0555289]
[1725610323736,0.28592813,128.68,128.66,0.0555289]
[1725610323944,111.21323267,128.71,128.66,0.0555289]
[1725610324152,0.28591953,128.7,128.66,0.0555289]
[1725610324442,4.14218899,128.7,128.66,0.0555289]
[1725610324647,3.8867,128.68,128.66,0.0555289]
[1725610326341,0.28592689,128.67,128.66,0.0555289]
[1725610326935,4.17272689,128.67,128.66,0.0555289]
[1725610327352,0.28593031,128.67,128.59,29.92]
[1725610327549,3.8877,128.65,128.61,3.8886]
[1725610328453,3.8878,128.64,128.62,0.05775086]
[1725610329741,3.8878,128.64,128.62,3.94595086]
[1725610330646,3.93737569,128.64,128.62,3.94595086]
[1725610334056,3.888,128.63,128.62,0.05775086]
[1725610335061,3.93747569,128.64,128.62,0.05775086]
[1725610335263,3.93747569,128.64,128.62,33.86595086]
[1725610335559,0.04957569,128.64,128.62,29.97775086]
[1725610336361,0.04957569,128.64,128.63,3.888]
[1725610336764,0.28591958,128.68,128.62,29.92]
[1725610336961,3.8872,128.66,128.64,33.8076]
[1725610337864,3.887,128.67,128.65,3.8874]
[1725610339173,3.8867,128.68,128.65,3.8874]
[1725610339472,3.8867,128.68,128.65,3.94720472]
[1725610339673,104.95086775,128.72,128.65,3.94720472]
[1725610339998,0.28590817,128.7,128.65,3.94720472]
[1725610340373,0.28590817,128.7,128.65,0.05980472]
[1725610340877,3.887,128.67,128.65,0.05980472]
[1725610341772,3.887,128.67,128.65,3.94720472]
[1725610345674,104.95086775,128.72,128.65,0.05980472]
[1725610345675,3.8871,128.66,128.65,0.05980472]
[1725610346889,3.887,128.67,128.65,29.97980472]
[1725610347174,112.72206775,128.72,128.65,29.97980472]
[1725610347376,4.09926027,128.71,128.65,33.86710472]
[1725610347585,0.28590816,128.7,128.65,33.86710472]
[1725610348078,3.8867,128.68,128.65,33.86710472]
[1725610348278,104.95086775,128.72,128.65,29.97980472]
[1725610348583,0.28589183,128.71,128.65,29.97980472]
[1725610348769,3.8865,128.69,128.66,3.887]
[1725610351781,3.8865,128.68,128.66,3.887]
[1725610352079,3.8865,128.68,128.66,3.44274445]
[1725610355884,3.8868,128.67,128.66,0.05574445]
[1725610356985,3.8867,128.68,128.66,29.97574445]
[1725610357185,107.38070592,128.72,128.66,29.97574445]
[1725610357386,0.28588941,128.71,128.66,29.97574445]
[1725610357689,0.28588941,128.71,128.66,33.93354098]
[1725610358286,3.8861,128.7,128.67,3.8866]
[1725610358687,107.38070592,128.72,128.67,3.8866]
[1725610358886,3.8862,128.7,128.67,3.8866]
[1725610359586,3.8863,128.69,128.67,3.8866]
[1725610359793,3.8863,128.69,128.66,33.86264445]
[1725610360381,9.1123,128.76,128.68,33.8064]
[1725610360588,9.1123,128.76,128.71,0.05807344]
[1725610360589,0.28585857,128.75,128.71,0.05807344]
[1725610360890,3.8855,128.72,128.71,0.05807344]
[1725610361188,4.17135857,128.72,128.71,0.05807344]
[1725610366806,7.7663,128.8,128.71,0.05807344]
[1725610366807,258.22633711,128.84,128.71,0.05807344]
[1725610366990,2.806,128.79,128.76,0.05748973]
[1725610367297,3.8838,128.77,128.76,0.05411657]
[1725610367502,8.11627495,128.77,128.76,0.05411657]
[1725610367890,7.83049049,128.77,128.76,0.05411657]
[1725610368089,8.1162685,128.77,128.76,0.05411657]
[1725610368696,4.2324685,128.77,128.7,3.8858]
[1725610368896,0.28577801,128.76,128.7,3.8858]
[1725610369090,3.8846,128.75,128.71,3.8854]
[1725610369298,0.28577801,128.74,128.71,3.8854]
[1725610369593,0.26577801,128.74,128.71,3.8854]
[1725610369895,0.26577801,128.74,128.71,3.9412089]
[1725610370094,4.15057801,128.74,128.71,3.9412089]
[1725610370302,3.8848,128.74,128.71,3.9412089]
[1725610373399,3.8848,128.74,128.71,0.0558089]
[1725610373605,0.28580978,128.73,128.71,0.0558089]
[1725610374194,0.28580978,128.73,128.71,3.9414089]
[1725610374595,3.8853,128.72,128.71,0.0558089]
[1725610374801,4.17110978,128.72,128.71,0.0558089]
[1725610376009,4.17114576,128.72,128.71,0.0558089]
[1725610376503,0.28584576,128.72,128.61,11.8197]
[1725610376710,0.28584576,128.73,128.65,29.92]
[1725610376911,0.28584576,128.72,128.68,29.92]
[1725610377095,2.7995,128.74,128.68,29.92]
[1725610377306,0.28583626,128.73,128.68,29.92]
[1725610377805,0.28583626,128.73,128.69,0.05836666]
[1725610378000,0.05879852,128.72,128.69,29.97836666]
[1725610378396,0.05879852,128.72,128.7,3.8858]
[1725610379606,0.05879852,128.72,128.7,33.8058]
[1725610380296,3.94419852,128.72,128.7,33.8058]
[1725610380907,3.94419852,128.72,128.7,29.92]
[1725610382005,0.05879852,128.72,128.7,33.8059]
[1725610382204,0.05879852,128.72,128.7,29.92]
[1725610382810,97.66545726,128.79,128.7,29.92]
[1725610383013,97.66545726,128.79,128.73,29.92]
[1725610383014,0.28577048,128.78,128.73,29.92]
[1725610383404,3.884,128.77,128.74,3.8846]
[1725610383604,0.28577048,128.76,128.74,3.8846]
[1725610383804,3.884,128.77,128.74,3.93522799]
[1725610384505,3.93336804,128.77,128.74,3.93522799]
[1725610385402,3.8841,128.76,128.74,3.93522799]
[1725610385605,0.04936804,128.77,128.75,3.8844]
[1725610385804,0.04936804,128.77,128.76,29.92]
[1725610386312,0.04936804,128.77,128.76,33.8041]
[1725610386605,0.04936804,128.77,128.76,29.92]
[1725610387404,0.28567614,128.82,128.77,3.8837]
[1725610387610,0.28567614,128.81,128.77,3.8837]
[1725610387903,37.6823,128.86,128.77,3.8837]
[1725610388216,0.28566471,128.85,128.77,3.8837]
[1725610388505,0.28566471,128.85,128.8,0.05561397]
[1725610388706,3.8826,128.81,128.8,0.05561397]
[1725610389016,4.16824888,128.81,128.8,0.05561397]
[1725610391900,3.8826,128.81,128.8,0.05561397]
[1725610392114,4.16828898,128.81,128.8,0.05561397]
[1725610393711,4.16827297,128.81,128.8,0.05561397]
[1725610396112,4.16828343,128.81,128.8,0.05561397]
[1725610398210,4.16828137,128.81,128.8,0.05561397]
[1725610400111,3.8826,128.81,128.8,0.05561397]
[1725610400313,4.16826675,128.81,128.8,0.05561397]
[1725610404321,4.16825726,128.81,128.8,0.05561397]
[1725610405415,4.16825004,128.81,128.8,0.05561397]
[1725610406820,4.16825555,128.81,128.8,0.05561397]
[1725610407517,0.28565555,128.81,128.8,0.05561397]
[1725610408317,0.2856272,128.81,128.8,0.05561397]
[1725610408719,3.8825,128.82,128.8,0.05561397]
[1725610408927,3.8825,128.82,128.81,11.93]
[1725610409219,4.16812199,128.82,128.81,11.93]
[1725610409723,3.8826,128.81,128.8,11.98561397]
[1725610409926,4.16822199,128.81,128.8,11.98561397]
[1725610412421,4.16823729,128.81,128.8,11.98561397]
[1725610415435,4.16823729,128.81,128.8,0.05561397]
[1725610416432,3.8826,128.81,128.8,0.05561397]
[1725610416927,4.16823729,128.81,128.8,0.05561397]
[1725610418531,4.16823729,128.81,128.62,7.7764]
[1725610418532,3.885,128.74,128.62,7.7764]
[1725610418737,3.91828847,128.78,128.73,11.93]
[1725610418931,0.28573625,128.77,128.73,11.93]
[1725610419334,3.8846,128.75,128.73,11.93]
[1725610419530,3.9366693,128.75,128.73,11.98811608]
[1725610421037,3.9366693,128.75,128.74,11.93]
[1725610422035,3.8847,128.74,128.73,0.05811608]
[1725610422560,4.17050445,128.74,128.73,0.05811608]
[1725610422835,0.28580445,128.74,128.73,0.05811608]
[1725610423041,0.0520693,128.75,128.73,0.05811608]
[1725610423240,3.8847,128.74,128.73,0.05811608]
[1725610423442,0.28580445,128.74,128.73,11.98811608]
[1725610423639,0.0520693,128.75,128.73,11.98811608]
[1725610424451,3.8847,128.74,128.73,11.98811608]
[1725610424653,4.17047048,128.74,128.73,0.05811608]
[1725610427848,3.8847,128.74,128.73,0.05811608]
[1725610428052,0.0520693,128.75,128.73,0.05811608]
[1725610428053,3.9366693,128.75,128.73,0.05811608]
[1725610428559,3.9366693,128.75,128.74,11.93]
[1725610428865,0.0520693,128.75,128.74,11.93]
[1725610429246,0.28573131,128.79,128.75,3.8843]
[1725610429451,0.28573131,128.8,128.77,11.93]
[1725610429661,0.28573131,128.78,128.77,11.93]
[1725610429857,0.28573131,128.79,128.77,11.93]
[1725610430063,0.28573131,128.78,128.77,11.93]
[1725610430867,0.28573131,128.78,128.76,11.98085027]
[1725610431158,4.16933131,128.78,128.76,11.98085027]
[1725610431356,3.8836,128.78,128.76,11.98085027]
[1725610431947,3.8836,128.78,128.76,0.05085027]
[1725610438165,0.285705,128.77,128.76,0.05085027]
[1725610438362,0.285705,128.83,128.75,3.94047392]
[1725610438563,0.285705,128.82,128.78,0.05130858]
[1725610438764,0.285705,128.81,128.78,0.05130858]
[1725610438958,0.285705,128.83,128.78,0.05130858]
[1725610439159,31.1355,128.84,128.78,0.05130858]
[1725610439366,3.8832,128.79,128.78,0.05130858]
[1725610439662,4.16890462,128.79,128.78,0.05130858]
[1725610440068,8.09013346,128.79,128.78,0.05130858]
[1725610440964,8.09013376,128.79,128.78,0.05130858]
[1725610441360,4.16890492,128.79,128.78,0.05130858]
[1725610442068,7.99143273,128.79,128.78,0.05130858]
[1725610443771,7.9914345,128.79,128.78,0.05130858]
[1725610445061,7.70572781,128.79,128.78,0.05130858]
[1725610445292,7.99143266,128.79,128.78,0.05130858]
[1725610445473,4.10823266,128.79,128.72,29.83]
[1725610445668,0.28570485,128.78,128.7,29.83]
[1725610445869,1.59090485,128.78,128.71,3.8854]
[1725610446078,3.8849,128.74,128.7,29.83]
[1725610446275,3.8849,128.74,128.7,33.7157]
[1725610446476,0.05297245,128.73,128.71,0.04945713]
[1725610446975,0.05297245,128.73,128.71,3.93505713]
[1725610447177,0.05297245,128.73,128.71,0.04945713]
[1725610447378,0.05297245,128.73,128.72,29.83]
[1725610447581,0.05297245,128.73,128.72,33.7153]
[1725610449077,31.1516,128.83,128.71,0.04945713]
[1725610449292,3.8854,128.72,128.69,2.6521]
[1725610449571,3.95237188,128.75,128.69,32.4821]
[1725610449773,0.2857707,128.74,128.69,32.4821]
[1725610449975,3.8852,128.73,128.7,3.93928231]
[1725610450177,3.8852,128.73,128.7,3.8859]
[1725610450481,7.7674,128.78,128.7,3.93808376]
[1725610450777,0.28577787,128.77,128.73,0.05833778]
[1725610451177,3.8847,128.74,128.73,0.05833778]
[1725610451477,4.17047787,128.74,128.73,0.05833778]
[1725610452982,4.17048757,128.74,128.73,0.05833778]
[1725610455075,16.12048757,128.74,128.73,0.05833778]
[1725610455277,16.12048757,128.74,128.63,1.398]
[1725610455278,3.8862,128.7,128.67,11.95]
[1725610455677,3.8862,128.7,128.66,3.8868]
[1725610455873,3.8862,128.7,128.67,11.95]
[1725610456075,3.90323047,128.75,128.68,11.95]
[1725610456076,3.8858,128.71,128.68,11.95]
[1725610456375,13.2542,128.8,128.72,11.95]
[1725610456575,0.28578133,128.78,128.77,11.95]
[1725610456780,0.05826987,128.79,128.77,11.95]
[1725610456983,0.28572961,128.78,128.77,11.95]
[1725610457185,3.8835,128.78,128.77,11.95]
[1725610457384,4.16922961,128.78,128.77,11.95]
[1725610458187,4.16922961,128.78,128.76,0.05402744]
[1725610458378,0.28572961,128.77,128.76,0.05402744]
[1725610459386,3.8835,128.78,128.76,0.05402744]
[1725610460287,0.28570461,128.77,128.76,0.05402744]
[1725610461683,3.8835,128.78,128.76,0.05402744]
[1725610463188,0.05826987,128.79,128.77,29.83]
[1725610463479,0.05826987,128.79,128.77,33.7135]
[1725610463684,0.28567275,128.8,128.78,29.83]
[1725610463882,3.87032398,128.84,128.78,29.83]
[1725610464086,0.28562012,128.83,128.78,29.83]
[1725610464276,0.28562012,128.82,128.78,29.83]
[1725610464480,0.28562012,128.83,128.78,29.83]
[1725610464691,0.28562012,128.82,128.79,0.05725332]
[1725610464878,3.8824,128.82,128.79,3.94025332]
[1725610465074,0.28562811,128.81,128.79,3.94025332]
[1725610465891,357.18885272,128.88,128.8,29.83]
[1725610465892,327.35885272,128.88,128.8,29.83]
[1725610466078,0.28560663,128.87,128.83,0.05898571]
[1725610466587,3.8812,128.86,128.83,0.05898571]
[1725610466884,0.28560663,128.85,128.83,0.05898571]
[1725610467085,0.28560663,128.84,128.83,0.05898571]
[1725610467282,0.28560663,128.87,128.83,0.05898571]
[1725610467486,0.28560663,128.86,128.83,0.05898571]
[1725610467785,0.28560663,128.85,128.83,0.05898571]
[1725610467983,0.28560663,128.87,128.83,0.05898571]
[1725610468188,3.8814,128.85,128.83,0.05898571]
[1725610468489,0.28560663,128.84,128.83,0.05898571]
[1725610469184,0.28558593,128.84,128.83,0.05898571]
[1725610469388,103.22448005,128.88,128.83,0.05898571]
[1725610469389,3.8816,128.85,128.83,0.05898571]
[1725610469584,0.28558593,128.84,128.83,0.05898571]
[1725610471379,4.16728593,128.84,128.83,0.05898571]
[1725610471786,3.8826,128.81,128.77,3.8836]
[1725610471989,7.82289325,128.81,128.77,3.8836]
[1725610472209,29.83,128.85,128.76,31.1609]
[1725610472485,3.8824,128.82,128.78,3.8833]
[1725610472686,0.28561836,128.81,128.78,3.8833]
[1725610472993,3.8824,128.82,128.78,3.93818016]
[1725610473286,4.16822167,128.81,128.78,3.93818016]
[1725610473490,3.8826,128.81,128.78,3.93818016]
[1725610474189,3.9397278,128.81,128.78,3.93818016]
[1725610477279,3.9397278,128.81,128.79,3.8832]
[1725610477484,3.9397278,128.81,128.78,0.05488016]
[1725610477881,3.9397278,128.81,128.78,3.93808016]
[1725610478087,3.9397278,128.81,128.78,29.88488016]
[1725610478389,3.9397278,128.81,128.79,3.8831]
[1725610478791,0.0571278,128.81,128.79,3.8831]
[1725610479492,0.0571278,128.81,128.8,33.7129]
[1725610479697,110.98568005,128.88,128.8,29.83]
[1725610479698,0.2856029,128.87,128.8,29.83]
[1725610479985,0.2856029,128.87,128.82,29.83]
[1725610480192,3.8817,128.85,128.82,33.7123]
[1725610480382,0.2856029,128.84,128.82,33.7123]
[1725610480584,0.2856029,128.84,128.82,33.76999857]
[1725610481293,3.8817,128.85,128.82,33.76999857]
[1725610481491,0.28556552,128.84,128.82,33.76999857]
[1725610482594,0.28556552,128.84,128.83,3.882]
[1725610482788,99.35885272,128.88,128.82,29.88769857]
[1725610483091,1.3968,128.94,128.86,29.83]
[1725610483092,0.28550141,128.87,128.86,29.83]
[1725610483295,1.3968,128.94,128.86,29.83]
[1725610483492,0.28545613,128.93,128.89,0.05813825]
[1725610483891,3.8795,128.92,128.89,0.05813825]
[1725610484087,0.28545613,128.91,128.89,0.05813825]
[1725610485095,3.8795,128.92,128.89,0.05813825]
[1725610485397,1.3968,128.94,128.89,0.05813825]
[1725610485596,0.2854339,128.91,128.89,0.05813825]
[1725610485902,3.8799,128.9,128.89,0.05813825]
[1725610486301,4.1653339,128.9,128.89,0.05813825]
[1725610487993,0.2854339,128.9,128.89,0.05813825]
[1725610489494,3.8794,128.92,128.89,0.05813825]
[1725610489701,3.85637071,128.96,128.9,29.83]
[1725610489901,3.8788,128.94,128.92,0.05249981]
[1725610490098,0.28540044,128.93,128.92,0.05249981]
[1725610492095,0.28540044,128.94,128.92,0.05249981]
[1725610492303,0.28540044,128.93,128.92,0.05249981]
[1725610492802,0.28540044,128.94,128.92,0.05249981]
[1725610493002,0.28540044,128.93,128.92,3.93179981]
[1725610493205,0.28540044,128.94,128.92,3.93179981]
[1725610493408,3.8785,128.95,128.92,3.93179981]
[1725610493599,0.57076532,128.93,128.92,3.93179981]
[1725610493906,0.57076532,128.93,128.92,0.05249981]
[1725610495203,4.44976532,128.93,128.92,0.05249981]
[1725610495501,4.4497679,128.93,128.92,0.05249981]
[1725610497600,4.44976636,128.93,128.92,0.05249981]
[1725610497808,4.73515006,128.93,128.92,0.05249981]
[1725610498217,0.85615006,128.93,128.92,0.05249981]
[1725610498711,0.5707674,128.93,128.92,0.05249981]
[1725610499012,0.2853837,128.93,128.92,0.05249981]
[1725610499215,0.2853837,128.96,128.92,0.05249981]
[1725610499516,0.28538331,128.95,128.92,0.05249981]
[1725610499714,0.28538331,128.94,128.92,0.05249981]
[1725610499904,0.28538331,128.93,128.92,0.05249981]
[1725610500307,4.16438331,128.93,128.92,0.05249981]
[1725610501713,4.16440221,128.93,128.92,0.05249981]
[1725610502409,3.8801,128.9,128.86,35.0717]
[1725610503315,0.05937539,128.89,128.87,0.05761968]
[1725610503521,3.93957539,128.89,128.87,0.05761968]
[1725610504510,3.8805,128.88,128.87,0.05761968]
[1725610507719,29.88937539,128.89,128.75,7.7683]
[1725610507906,29.88937539,128.89,128.78,29.83]
[1725610507907,0.28548457,128.88,128.78,29.83]
[1725610508112,1.63238457,128.88,128.78,29.83]
[1725610508317,3.8825,128.82,128.79,3.8831]
[1725610508709,3.8815,128.85,128.82,3.8822]
[1725610509014,0.05609029,128.85,128.82,33.76237327]
[1725610509318,3.93769029,128.85,128.82,33.76237327]
[1725610510114,3.8817,128.84,128.82,33.76237327]
[1725610510314,3.8817,128.84,128.82,29.88017327]
[1725610510914,3.93769029,128.85,128.82,33.76247327]
[1725610512021,0.05609029,128.85,128.82,0.05017327]
[1725610512219,0.34163359,128.85,128.82,0.05017327]
[1725610512519,3.882,128.83,128.82,0.05017327]
[1725610512723,7.78353343,128.83,128.82,0.05017327]
[1725610514023,3.882,128.83,128.82,0.05017327]
[1725610515821,30.11559422,128.83,128.76,1.4051]
[1725610516017,30.11559422,128.82,128.73,33.62069812]
[1725610516325,3.8837,128.78,128.74,3.8846]
[1725610516820,3.8831,128.8,128.76,29.83]
[1725610517021,0.04951397,128.77,128.76,29.83]
[1725610517222,0.05578947,128.78,128.76,29.83]
[1725610517422,0.05479353,128.78,128.76,29.87897254]
[1725610517922,0.05479353,128.78,128.77,33.7138]
[1725610519216,3.8831,128.8,128.77,29.83]
[1725610519420,3.93360209,128.84,128.77,31.1749]
[1725610519621,29.83,128.86,128.77,31.1749]
[1725610519822,29.83,128.86,128.78,3.8833]
[1725610519823,3.8826,128.81,128.78,3.8833]
[1725610520328,3.93467586,128.81,128.78,3.93234941]
[1725610523122,0.05207586,128.81,128.79,29.83]
[1725610523720,0.05207586,128.81,128.8,3.8829]
[1725610524126,3.8819,128.84,128.79,33.77401336]
[1725610524323,1.3391,128.89,128.81,29.83]
[1725610524522,3.8815,128.85,128.81,29.83]
[1725610525227,3.8815,128.85,128.83,3.8819]
[1725610525428,3.8815,128.85,128.82,3.94996849]
[1725610525618,0.04920581,128.85,128.83,29.83]
[1725610525818,0.28549031,128.89,128.83,29.83]
[1725610526020,0.28549031,128.9,128.84,1.3328]
[1725610526224,4.16616213,128.88,128.84,1.3328]
[1725610526527,3.8807,128.88,128.85,3.8813]
[1725610526731,33.71340795,128.92,128.84,1.3328]
[1725610526932,0.2854629,128.91,128.87,0.05110068]
[1725610527323,3.8808,128.88,128.87,0.05110068]
[1725610527531,4.1662629,128.88,128.87,0.05110068]
[1725610527923,3.8808,128.88,128.87,0.05110068]
[1725610528119,4.16626267,128.88,128.87,0.05110068]
[1725610529629,0.28547746,128.88,128.87,0.05110068]
[1725610530826,4.16597746,128.88,128.87,0.05110068]
[1725610532724,0.28547746,128.88,128.87,0.05110068]
[1725610533034,0.28547746,128.88,128.87,3.93190068]
[1725610539443,3.8801,128.9,128.88,3.8805]
[1725610540037,3.8795,128.92,128.88,29.83]
[1725610540243,29.83,128.97,128.89,0.05796932]
[1725610540445,29.83,128.97,128.92,0.04920699]
[1725610540446,0.28538667,128.96,128.92,0.04920699]
[1725610540640,3.8792,128.93,128.92,0.04920699]
[1725610540842,4.16458667,128.93,128.92,0.04920699]
[1725610541149,0.28538667,128.93,128.92,3.92850699]
[1725610541555,0.28538667,128.93,128.92,0.04920699]
[1725610541850,3.8788,128.94,128.92,0.04920699]
[1725610542048,0.28538101,128.93,128.92,0.04920699]
[1725610543948,4.16438101,128.93,128.92,0.04920699]
[1725610544339,4.16442567,128.93,128.92,0.04920699]
[1725610545946,4.16441215,128.93,128.92,0.04920699]
[1725610547547,30.11541215,128.93,128.8,7.7654]
[1725610547755,0.28541215,128.92,128.84,29.83]
[1725610547945,3.80353127,128.91,128.85,7.66969168]
[1725610548145,3.8804,128.89,128.85,7.66969168]
[1725610548547,29.83,128.93,128.86,0.05889089]
[1725610548851,7.7558,128.97,128.86,33.76999089]
[1725610548852,4.12468375,128.92,128.86,33.76999089]
[1725610549051,0.28543857,128.91,128.88,0.04921537]
[1725610549451,3.8799,128.9,128.88,0.04921537]
[1725610549649,29.83,128.95,128.88,0.04921537]
[1725610549851,0.28543449,128.94,128.88,0.04921537]
[1725610550149,0.28543453,128.93,128.88,0.04921537]
[1725610550357,4.24438911,128.92,128.88,0.04921537]
[1725610550555,0.28543453,128.91,128.88,0.04921537]
[1725610550753,0.28543453,128.9,128.88,0.04921537]
[1725610550954,29.83,128.95,128.88,0.04921537]
[1725610551155,0.28543453,128.94,128.88,29.87921537]
[1725610551355,0.28543453,128.93,128.9,0.05415911]
[1725610551556,3.8797,128.91,128.9,0.05415911]
[1725610551755,4.16513453,128.91,128.9,0.05415911]
[1725610554258,4.16512488,128.91,128.9,0.05415911]
[1725610554555,0.28542488,128.91,128.73,11.6546]
[1725610554758,0.28542488,128.91,128.84,29.83]
[1725610554950,0.28542488,128.91,128.85,3.8813]
[1725610555151,0.28542488,128.91,128.84,33.72699906]
[1725610555547,0.05710016,128.89,128.86,0.05122333]
[1725610556057,0.05710016,128.89,128.86,3.93212333]
[1725610556245,3.93730016,128.89,128.86,3.93212333]
[1725610556452,0.05710016,128.89,128.86,0.05122333]
[1725610556752,0.05710016,128.89,128.86,1.38882333]
[1725610557555,3.93740016,128.89,128.86,5.26982333]
[1725610560060,3.8805,128.88,128.86,5.26982333]
[1725610560254,3.8805,128.88,128.86,1.38882333]
[1725610561057,0.05710016,128.89,128.86,0.05122333]
[1725610561565,0.05710016,128.89,128.72,87.00955607]
[1725610561763,29.83,128.86,128.77,29.83]
[1725610562062,29.83,128.84,128.76,2.8405]
[1725610562259,29.83,128.82,128.74,31.2018]
[1725610562556,29.83,128.82,128.74,29.83]
[1725610562557,3.884,128.77,128.74,29.83]
[1725610562755,3.884,128.77,128.74,0.05282462]
[1725610563664,0.04972512,128.79,128.76,29.83]
[1725610563863,0.04972512,128.79,128.78,29.83]
[1725610564362,0.04972512,128.79,128.78,33.7135]
[1725610565066,0.04972512,128.79,128.77,35.14119242]
[1725610565464,0.04972512,128.79,128.77,29.88089242]
[1725610565965,0.04972512,128.79,128.77,0.05089242]
[1725610566859,0.04972512,128.79,128.77,3.93469242]
[1725610567163,3.8835,128.78,128.77,0.05089242]
[1725610568261,0.04972512,128.79,128.77,0.05089242]
[1725610570269,0.04972512,128.79,128.77,3.93459242]
[1725610570458,0.04972512,128.79,128.77,0.05089242]
[1725610570658,0.04972512,128.79,128.77,37.33089242]
[1725610570870,0.04972512,128.79,128.78,3.8835]
[1725610571067,0.04972512,128.79,128.77,37.33089242]
[1725610571467,0.04972512,128.79,128.77,41.21449242]
[1725610573670,0.04972512,128.79,128.78,3.8835]